fUSD/lending_fUSD_20251123
["ID","MTS","AMOUNT","RATE_DAILY","PERIOD"]
[394740750,1763922664972,-500.0,0.0003863,8]
[394740751,1763922664982,-500.0,0.0003863,8]
[394740752,1763922664993,-500.0,0.0003863,8]
[394740753,1763922665003,-2281.32,0.0003863,8]
[394740754,1763922665014,-500.0,0.0003863,8]
[394740755,1763922665024,-500.0,0.0003863,8]
[394740756,1763922665036,-500.0,0.0003863,8]
[394740757,1763922665047,-543.13,0.0003863,8]
[394740758,1763922665057,-500.0,0.0003863,8]
[394740759,1763922665067,-896.57,0.0003863,8]
[394740760,1763922665082,-738.55,0.0003863,8]
[394740761,1763922665093,-500.0,0.0003863,8]
[394740762,1763922665104,-500.0,0.0003863,8]
[394740763,1763922665114,-915.47,0.0003863,8]
[394740764,1763922665126,-680.72,0.0003863,8]
[394740765,1763922665137,-638.71,0.0003863,8]
[394740766,1763922665148,-500.0,0.0003863,8]
[394740767,1763922665159,-518.81637064,0.0003863,8]
[394740768,1763922665171,-1113.5,0.0003863,8]
[394740769,1763922665182,-500.0,0.0003863,8]
[394740770,1763922665192,-500.0,0.0003863,8]
[394740771,1763922665205,-500.0,0.0003863,8]
[394740772,1763922665216,-500.0,0.0003863,8]
[394740773,1763922665232,-500.0,0.0003863,8]
[394740774,1763922665242,-500.0,0.0003863,8]
[394740775,1763922665254,-530.48019861,0.0003863,8]
[394740776,1763922665269,-84.30239931,0.0003863,8]
[394740777,1763922665280,-500.0,0.0003863,8]
[394740778,1763922665291,-500.0,0.0003863,8]
[394740779,1763922665302,-500.0,0.0003863,8]
[394740780,1763922665312,-500.0,0.0003863,8]
[394740781,1763922665322,-502.11216476,0.0003863,8]
[394740782,1763922665333,-500.0,0.0003863,8]
[394740783,1763922665343,-600.96,0.0003863,8]
[394740784,1763922665354,-500.0,0.0003863,8]
[394740785,1763922665365,-500.0,0.0003863,8]
[394740786,1763922665375,-500.0,0.0003863,8]
[394740787,1763922665386,-500.0,0.0003863,8]
[394740788,1763922665397,-500.0,0.0003863,8]
[394740789,1763922665407,-265.39117706,0.0003863,8]
[394740790,1763922665418,-616.03,0.0003863,8]
[394740791,1763922665430,-1175.5,0.0003863,8]
[394740792,1763922665440,-500.0,0.0003863,8]
[394740793,1763922665455,-500.0,0.0003863,8]
[394740794,1763922665466,-500.0,0.0003863,8]
[394740795,1763922665477,-502.96645161,0.0003863,8]
[394740796,1763922665487,-500.0,0.0003863,8]
[394740797,1763922665498,-1411.24,0.0003863,8]
[394740798,1763922665509,-500.0,0.0003863,8]
[394740799,1763922665519,-500.0,0.0003863,8]
[394740800,1763922665529,-500.0,0.0003863,8]
[394740801,1763922665540,-777.92,0.0003863,8]
[394740802,1763922665551,-500.0,0.0003863,8]
[394740803,1763922665562,-500.0,0.0003863,8]
[394740804,1763922665572,-653.12,0.0003863,8]
[394740805,1763922665584,-519.1,0.0003863,8]
[394740806,1763922665594,-500.0,0.0003863,8]
[394740807,1763922665604,-500.0,0.0003863,8]
[394740808,1763922665614,-921.33,0.0003863,8]
[394740809,1763922665625,-500.0,0.0003863,8]
[394740810,1763922665635,-500.0,0.0003863,8]
[394740811,1763922665649,-520.13,0.0003863,8]
[394740812,1763922665661,-500.0,0.0003863,8]
[394740813,1763922665672,-151.0,0.0003863,120]
[394740814,1763922665683,-500.0,0.0003863,8]
[394740815,1763922665693,-675.26,0.0003863,8]
[394740816,1763922665703,-844.89,0.0003863,8]
[394740817,1763922665715,-151.0,0.0003863,120]
[394740818,1763922665725,-500.0,0.0003863,8]
[394740819,1763922665735,-692.98,0.0003863,8]
[394740820,1763922665746,-500.0,0.0003863,8]
[394740821,1763922665756,-500.0,0.0003863,8]
[394740822,1763922665766,-500.0,0.0003863,8]
[394740823,1763922665776,-500.0,0.0003863,8]
[394740824,1763922665787,-500.0,0.0003863,8]
[394740825,1763922665797,-588.28161728,0.0003863,8]
[394740826,1763922665807,-575.35441936,0.0003863,8]
[394740827,1763922665818,-500.0,0.0003863,8]
[394740828,1763922665828,-732.21,0.0003863,8]
[394740829,1763922665838,-532.45,0.0003863,8]
[394740830,1763922665848,-674.9,0.0003863,8]
[394740831,1763922665859,-500.0,0.0003863,8]
[394740832,1763922665870,-500.0,0.0003863,8]
[394740833,1763922665880,-500.0,0.0003863,8]
[394740834,1763922665892,-500.0,0.0003863,8]
[394740835,1763922665903,-500.0,0.0003863,8]
[394740836,1763922665915,-1075.0,0.0003863,8]
[394740837,1763922665927,-500.0,0.0003863,8]
[394740838,1763922665939,-500.0,0.0003863,8]
[394740839,1763922665951,-669.58,0.0003863,8]
[394740840,1763922665962,-500.0,0.0003863,8]
[394740841,1763922665972,-500.0,0.0003863,8]
[394740842,1763922665983,-500.0,0.0003863,8]
[394740843,1763922665994,-500.0,0.0003863,8]
[394740844,1763922666010,-1069.26,0.0003863,8]
[394740845,1763922666021,-500.0,0.0003863,8]
[394740846,1763922666033,-634.91,0.0003863,8]
[394740847,1763922666043,-500.0,0.0003863,8]
[394740848,1763922666054,-500.0,0.0003863,8]
[394740849,1763922666064,-500.0,0.0003863,8]
[394740850,1763922666075,-514.5,0.0003863,8]
[394740851,1763922666085,-500.0,0.0003863,8]
[394740852,1763922666096,-554.38,0.0003863,8]
[394740853,1763922666106,-500.0,0.0003863,8]
[394740854,1763922666116,-500.0,0.0003863,8]
[394740855,1763922666127,-500.0,0.0003863,8]
[394740856,1763922666138,-500.0,0.0003863,8]
[394740857,1763922666149,-500.0,0.0003863,8]
[394740858,1763922666159,-500.0,0.0003863,8]
[394740859,1763922666170,-1117.75,0.0003863,8]
[394740860,1763922666182,-559.94,0.0003863,8]
[394740861,1763922666196,-500.0,0.0003863,8]
[394740862,1763922666210,-500.0,0.0003863,8]
[394740863,1763922666220,-500.0,0.0003863,8]
[394740864,1763922666231,-545.86,0.0003863,8]
[394740865,1763922666241,-500.0,0.0003863,8]
[394740866,1763922666253,-632.83,0.0003863,8]
[394740867,1763922666264,-500.0,0.0003863,8]
[394740868,1763922666275,-812.03,0.0003863,8]
[394740869,1763922666287,-500.0,0.0003863,8]
[394740870,1763922666298,-500.0,0.0003863,8]
[394740871,1763922666308,-503.73,0.0003863,8]
[394740872,1763922666318,-500.0,0.0003863,8]
[394740873,1763922666328,-500.0,0.0003863,8]
[394740874,1763922666338,-500.0,0.0003863,8]
[394740875,1763922666348,-901.63,0.0003863,8]
[394740876,1763922666358,-1535.59,0.0003863,8]
[394740877,1763922666368,-907.08,0.0003863,8]
[394740878,1763922666378,-500.0,0.0003863,8]
[394740879,1763922666389,-500.0,0.0003863,8]
[394740880,1763922666401,-500.0,0.0003863,8]
[394740881,1763922666411,-500.0,0.0003863,8]
[394740882,1763922666421,-500.0,0.0003863,8]
[394740883,1763922666431,-94.2912104,0.0003863,8]
[394740884,1763922666469,-252.636388,0.0003863,8]
[394740885,1763922667628,-479.01,0.00037178,2]
[394740886,1763922667638,-151.0,0.00038355,31]
[394740887,1763922667647,-151.0,0.00038356,31]
[394740888,1763922667656,-1211.3,0.00038628,2]
[394740889,1763922667666,-1444.06273109,0.0003863,8]
[394740890,1763922667678,-98.72967051,0.0003863,8]
[394740891,1763922667687,-418.32391657,0.0003863,8]
[394740892,1763922667697,-1459.13,0.0003863,8]
[394740893,1763922667707,-500.0,0.0003863,8]
[394740894,1763922667716,-500.0,0.0003863,8]
[394740895,1763922667725,-501.44,0.0003863,8]
[394740896,1763922667735,-500.0,0.0003863,8]
[394740897,1763922667745,-500.0,0.0003863,8]
[394740898,1763922667755,-500.0,0.0003863,8]
[394740899,1763922667765,-1621.98,0.0003863,8]
[394740900,1763922667775,-661.0,0.0003863,8]
[394740901,1763922667787,-1121.59,0.0003863,8]
[394740902,1763922667797,-500.0,0.0003863,8]
[394740903,1763922667806,-198.759861,0.0003863,30]
[394740904,1763922667816,-500.0,0.0003863,8]
[394740905,1763922667826,-500.0,0.0003863,8]
[394740906,1763922667836,-198.759861,0.0003863,30]
[394740907,1763922667846,-198.759861,0.0003863,30]
[394740908,1763922667856,-500.0,0.0003863,8]
[394740909,1763922667866,-500.0,0.0003863,8]
[394740910,1763922667875,-689.35,0.0003863,8]
[394740911,1763922667885,-198.759861,0.0003863,30]
[394740912,1763922667895,-500.0,0.0003863,8]
[394740913,1763922667905,-507.83,0.0003863,8]
[394740914,1763922667913,-305.26215041,0.0003863,8]
[394740915,1763922667924,-500.0,0.0003863,8]
[394740916,1763922667934,-500.0,0.0003863,8]
[394740917,1763922667943,-851.09,0.0003863,8]
[394740918,1763922667955,-500.0,0.0003863,8]
[394740919,1763922667965,-500.0,0.0003863,8]
[394740920,1763922667975,-500.0,0.0003863,8]
[394740921,1763922667985,-500.0,0.0003863,8]
[394740922,1763922667994,-500.0,0.0003863,8]
[394740923,1763922668003,-1031.17,0.0003863,8]
[394740924,1763922668013,-500.0,0.0003863,8]
[394740925,1763922668023,-500.0,0.0003863,8]
[394740926,1763922668033,-500.0,0.0003863,8]
[394740927,1763922668044,-500.0,0.0003863,8]
[394740928,1763922668053,-500.0,0.0003863,8]
[394740929,1763922668063,-500.0,0.0003863,8]
[394740930,1763922668073,-500.0,0.0003863,8]
[394740931,1763922668083,-500.0,0.0003863,8]
[394740932,1763922668092,-500.0,0.0003863,8]
[394740933,1763922668102,-500.0,0.0003863,8]
[394740934,1763922668111,-552.81,0.0003863,8]
[394740935,1763922668121,-500.0,0.0003863,8]
[394740936,1763922668130,-500.0,0.0003863,8]
[394740937,1763922668140,-500.0,0.0003863,8]
[394740938,1763922668152,-566.06,0.0003863,8]
[394740939,1763922668161,-500.0,0.0003863,8]
[394740940,1763922668171,-573.92,0.0003863,8]
[394740941,1763922668181,-500.0,0.0003863,8]
[394740942,1763922668191,-500.0,0.0003863,8]
[394740943,1763922668201,-511.47,0.0003863,8]
[394740944,1763922668219,-500.0,0.0003863,8]
[394740945,1763922668229,-500.0,0.0003863,8]
[394740946,1763922668239,-527.06,0.0003863,8]
[394740947,1763922668250,-500.0,0.0003863,8]
[394740948,1763922668260,-1225.58,0.0003863,8]
[394740949,1763922668270,-500.0,0.0003863,8]
[394740950,1763922668280,-151.0,0.0003863,120]
[394740951,1763922668292,-500.0,0.0003863,8]
[394740952,1763922668302,-2214.73,0.0003863,8]
[394740953,1763922668312,-500.0,0.0003863,8]
[394740954,1763922668322,-500.0,0.0003863,8]
[394740955,1763922668331,-583.94,0.0003863,8]
[394740956,1763922668342,-500.0,0.0003863,2]
[394740957,1763922668351,-509.38351113,0.0003863,8]
[394740958,1763922668361,-973.15,0.0003863,8]
[394740959,1763922668371,-500.0,0.0003863,8]
[394740960,1763922668381,-500.0,0.0003863,8]
[394740961,1763922668390,-500.0,0.0003863,8]
[394740962,1763922668400,-500.0,0.0003863,8]
[394740963,1763922668410,-779.14,0.0003863,8]
[394740964,1763922668420,-500.0,0.0003863,8]
[394740965,1763922668431,-933.53,0.0003863,8]
[394740966,1763922668441,-575.58,0.0003863,8]
[394740967,1763922668450,-500.0,0.0003863,8]
[394740968,1763922668461,-500.0,0.0003863,8]
[394740969,1763922668470,-413.67716462,0.0003863,8]
[394740970,1763922668479,-500.0,0.0003863,8]
[394740971,1763922668488,-5459.86,0.0003863,8]
[394740972,1763922668498,-500.0,0.0003863,8]
[394740973,1763922668507,-939.93,0.0003863,8]
[394740974,1763922668517,-1181.37,0.0003863,8]
[394740975,1763922668526,-500.0,0.0003863,8]
[394740976,1763922668535,-500.0,0.0003863,8]
[394740977,1763922668544,-500.0,0.0003863,8]
[394740978,1763922668553,-500.0,0.0003863,8]
[394740979,1763922668562,-503.9,0.0003863,8]
[394740980,1763922668572,-500.0,0.0003863,8]
[394740981,1763922668581,-500.0,0.0003863,8]
[394740982,1763922668590,-500.0,0.0003863,8]
[394740983,1763922668600,-600.0,0.0003863,30]
[394740984,1763922668609,-217.83804075,0.00038675,2]
[394740985,1763922668619,-1442.81918711,0.00038682,2]
[394740986,1763922668628,-300.0,0.00038692,2]
[394740987,1763922668637,-500.0,0.0003872,30]
[394740988,1763922668647,-151.0,0.00038893,30]
[394740989,1763922668656,-151.0,0.00038893,30]
[394740990,1763922668666,-151.0,0.00038893,30]
[394740991,1763922668678,-241.566832,0.00038903,90]
[394740992,1763922668687,-414.0,0.00038903,30]
[394740993,1763922668696,-500.0,0.00038903,30]
[394740994,1763922668705,-151.0,0.00038903,30]
[394740995,1763922668714,-1500.0,0.00038903,30]
[394740996,1763922668724,-6888.0,0.00038903,30]
[394740997,1763922668733,-537.6845,0.00038903,30]
[394740998,1763922668742,-250.0,0.00038903,30]
[394740999,1763922668751,-429.318,0.00038903,30]
[394741000,1763922668760,-500.0,0.00038903,30]
[394741001,1763922668770,-151.0,0.00038903,30]
[394741002,1763922668779,-1500.0,0.00038903,30]
[394741003,1763922668788,-5569.42811903,0.00038903,30]
[394741004,1763922668798,-250.0,0.00038903,30]
[394741005,1763922668808,-445.202766,0.00038903,30]
[394741006,1763922668818,-500.0,0.00038903,30]
[394741007,1763922668828,-294.46166993,0.00038903,30]
[394741008,1763922668838,-1500.0,0.00038903,30]
[394741009,1763922668847,-250.0,0.00038903,30]
[394741010,1763922668857,-151.0,0.00038903,30]
[394741011,1763922668866,-500.0,0.00038903,30]
[394741012,1763922668876,-461.67526834,0.00038903,30]
[394741013,1763922668886,-1500.0,0.00038903,30]
[394741014,1763922668896,-250.0,0.00038903,30]
[394741015,1763922668906,-500.0,0.00038903,30]
[394741016,1763922668916,-151.0,0.00038903,30]
[394741017,1763922668929,-500.0,0.00038903,30]
[394741018,1763922668940,-1500.0,0.00038903,30]
[394741019,1763922668952,-478.75725327,0.00038903,30]
[394741020,1763922668963,-151.0,0.00038903,30]
[394741021,1763922668974,-250.0,0.00038903,30]
[394741022,1763922668984,-256.74048497,0.00038903,30]
[394741023,1763922668995,-500.0,0.00038903,30]
[394741024,1763922669005,-1500.0,0.00038903,30]
[394741025,1763922669015,-518.5,0.00038903,30]
[394741026,1763922669026,-151.0,0.00038903,30]
[394741027,1763922669036,-496.47127164,0.00038903,30]
[394741028,1763922669046,-5000.0,0.00038903,30]
[394741029,1763922669056,-250.0,0.00038903,30]
[394741030,1763922669067,-500.0,0.00038903,30]
[394741031,1763922669077,-1500.0,0.00038903,30]
[394741032,1763922669087,-537.6845,0.00038903,30]
[394741033,1763922669098,-151.0,0.00038903,30]
[394741034,1763922669108,-514.84070869,0.00038903,30]
[394741035,1763922669117,-5000.0,0.00038903,30]
[394741036,1763922669127,-250.0,0.00038903,30]
[394741037,1763922669137,-500.0,0.00038903,30]
[394741038,1763922669146,-500.0,0.00038903,30]
[394741039,1763922669156,-1500.0,0.00038903,30]
[394741040,1763922669167,-557.5788265,0.00038903,30]
[394741041,1763922669179,-151.0,0.00038903,30]
[394741042,1763922669190,-533.88981491,0.00038903,30]
[394741043,1763922669201,-5000.0,0.00038903,30]
[394741044,1763922669216,-250.0,0.00038903,30]
[394741045,1763922669227,-520.78286561,0.00038903,30]
[394741046,1763922669237,-500.0,0.00038903,30]
[394741047,1763922669248,-1500.0,0.00038903,30]
[394741048,1763922669260,-578.20924308,0.00038903,30]
[394741049,1763922669270,-151.0,0.00038903,30]
[394741050,1763922669282,-151.0,0.00038903,30]
[394741051,1763922669292,-553.64373807,0.00038903,30]
[394741052,1763922669301,-3109.45704931,0.00038903,30]
[394741053,1763922669316,-595.22710787,0.00038903,30]
[394741054,1763922669326,-23.58287113,0.00038903,30]
[394741055,1763922669339,-226.41712887,0.00038903,30]
[394741056,1763922669349,-127.32787116,0.00038903,30]
[394741057,1763922669362,-271.70079059,0.00038903,30]
[394741058,1763922669374,-100.97133825,0.00038903,30]
[394741059,1763922669384,-432.80266421,0.00038903,30]
[394741060,1763922669396,-681.27642147,0.00038903,30]
[394741061,1763922669437,-385.92091432,0.00038903,30]
[394741062,1763922669447,-151.0,0.00038903,30]
[394741063,1763922669458,-151.0,0.00038903,30]
[394741064,1763922669468,-574.12855637,0.00038903,30]
[394741065,1763922669480,-250.0,0.00038903,30]
[394741066,1763922669491,-375.91544808,0.00038903,30]
[394741067,1763922669503,-124.08455192,0.00038903,30]
[394741068,1763922669513,-1500.0,0.00038903,30]
[394741069,1763922669523,-574.12855637,0.00038903,30]
[394741070,1763922669533,-151.0,0.00038903,30]
[394741071,1763922669543,-250.0,0.00038903,30]
[394741072,1763922669553,-500.0,0.00038903,30]
[394741073,1763922669562,-1500.0,0.00038903,30]
[394741074,1763922669572,-151.0,0.00038903,30]
[394741075,1763922669582,-250.0,0.00038903,30]
[394741076,1763922669592,-1500.0,0.00038903,30]
[394741077,1763922669602,-154.1399948,0.00038903,30]
[394741078,1763922669612,-500.0,0.00038903,30]
[394741079,1763922669621,-520.0,0.00038903,30]
[394741080,1763922669631,-250.0,0.00038903,30]
[394741081,1763922669641,-1500.0,0.00038903,30]
[394741082,1763922669651,-500.0,0.00038903,30]
[394741083,1763922669660,-539.24,0.00038903,30]
[394741084,1763922669670,-250.0,0.00038903,30]
[394741085,1763922669683,-1500.0,0.00038903,30]
[394741086,1763922669694,-500.0,0.00038903,30]
[394741087,1763922669703,-500.0,0.00038903,30]
[394741088,1763922669713,-500.0,0.00038903,30]
[394741089,1763922669722,-147.76172967,0.00038903,30]
[394741090,1763922669784,-411.43015033,0.00038903,30]
[394741091,1763922669794,-250.0,0.00038903,30]
[394741092,1763922669804,-1500.0,0.00038903,30]
[394741093,1763922669814,-500.0,0.00038903,30]
[394741094,1763922669824,-500.0,0.00038903,30]
[394741095,1763922669833,-500.0,0.00038903,30]
[394741096,1763922669843,-250.0,0.00038903,30]
[394741097,1763922669852,-579.88197956,0.00038903,30]
[394741098,1763922669861,-600.0,0.00038903,30]
[394741099,1763922669871,-1500.0,0.00038903,30]
[394741100,1763922669882,-500.0,0.00038903,30]
[394741101,1763922669891,-86.97690363,0.00038903,30]
[394741102,1763922669903,-413.02309637,0.00038903,30]
[394741103,1763922669913,-500.0,0.00038903,30]
[394741104,1763922669922,-250.0,0.00038903,30]
[394741105,1763922670000,-601.3376128,0.00038903,30]
[394741106,1763922670009,-600.0,0.00038903,30]
[394741107,1763922670018,-1500.0,0.00038903,30]
[394741108,1763922670029,-500.0,0.00038903,30]
[394741109,1763922670038,-250.0,0.00038903,30]
[394741110,1763922670048,-392.70388499,0.00038903,30]
[394741111,1763922670060,-107.29611501,0.00038903,30]
[394741112,1763922670070,-500.0,0.00038903,30]
[394741113,1763922670080,-623.58710448,0.00038903,30]
[394741114,1763922670089,-61.64066109,0.00038903,30]
[394741115,1763922670100,-188.35933891,0.00038903,30]
[394741116,1763922670112,-600.0,0.00038903,30]
[394741117,1763922670123,-500.0,0.00038903,30]
[394741118,1763922670133,-250.0,0.00038903,30]
[394741119,1763922670145,-1098.0534169,0.00038903,30]
[394741120,1763922670155,-294.2872442,0.00038903,30]
[394741121,1763922670167,-205.7127558,0.00038903,30]
[394741122,1763922670179,-500.0,0.00038903,30]
[394741123,1763922670188,-227.34643071,0.00038903,30]
[394741124,1763922670224,-419.31339663,0.00038903,30]
[394741125,1763922670233,-473.1960752,0.00038903,30]
[394741126,1763922670245,-126.8039248,0.00038903,30]
[394741127,1763922670255,-250.0,0.00038903,30]
[394741128,1763922670265,-225.05301513,0.00038903,30]
[394741129,1763922670305,-274.94698487,0.00038903,30]
[394741130,1763922670314,-500.0,0.00038903,30]
[394741131,1763922670323,-670.58624095,0.00038903,30]
[394741132,1763922670333,-500.0,0.00038903,30]
[394741133,1763922670342,-600.0,0.00038903,30]
[394741134,1763922670352,-250.0,0.00038903,30]
[394741135,1763922670365,-111.49994018,0.00038903,30]
[394741176,1763923832154,-168.19,0.00015907,2]
[394741178,1763923832164,-250.0,0.00017,2]
[394741180,1763923832173,-300.0,0.00019,2]
[394741181,1763923832183,-168.19,0.00019088,2]
[394741183,1763923832192,-284.80850437,0.00020489,2]
[394741185,1763923832201,-200.0,0.00020506,2]
[394741187,1763923832211,-200.0,0.00020506,2]
[394741189,1763923832220,-200.0,0.00020506,2]
[394741190,1763923832229,-200.0,0.00020506,2]
[394741191,1763923832238,-176.85060454,0.00020506,2]
[394741192,1763923832247,-250.0,0.00021019,2]
[394741193,1763923832256,-168.19,0.0002227,2]
[394741194,1763923832266,-426.78462315,0.00022513,2]
[394741195,1763923832275,-195.0,0.000227,2]
[394741196,1763923832285,-195.0,0.00022722,2]
[394741197,1763923832295,-311.53201482,0.00022776,43]
[394741198,1763923832304,-500.0,0.00022876,2]
[394741199,1763923832313,-356.63481981,0.00022876,2]
[394741200,1763923832323,-500.0,0.00022876,2]
[394741201,1763923832332,-500.0,0.00022876,2]
[394741202,1763923832341,-500.0,0.00022876,2]
[394741203,1763923832351,-311.53201472,0.00024484,47]
[394741204,1763923832359,-195.0,0.00024952,2]
[394741205,1763923832369,-151.0,0.00024965,2]
[394741206,1763923832378,-151.0,0.00024965,2]
[394741207,1763923832387,-151.0,0.00024965,2]
[394741208,1763923832396,-206.35089017,0.00024965,2]
[394741209,1763923832405,-9999.99,0.0002498,2]
[394741210,1763923832414,-7413.73583753,0.0002498,2]
[394741211,1763923832430,-2586.25416247,0.0002498,2]
[394741212,1763923832439,-21.87725843,0.0002498,2]
[394741217,1763923838096,-1263.98274157,0.0002498,2]
[394741218,1763923838105,-4191.62,0.0002498,2]
[394741219,1763923838115,-168.19,0.00025451,2]
[394741220,1763923838124,-311.53201472,0.00026192,51]
[394741221,1763923838134,-200.25,0.00027396,2]
[394741222,1763923838143,-311.53201472,0.00027901,55]
[394741223,1763923838152,-168.0,0.00028329,2]
[394741224,1763923838162,-270.0,0.00028401,2]
[394741225,1763923838172,-168.0,0.00028448,2]
[394741226,1763923838181,-270.0,0.0002855,2]
[394741227,1763923838191,-168.19,0.00028633,2]
[394741228,1763923838200,-270.0,0.00028702,7]
[394741229,1763923838210,-168.0,0.00029023,2]
[394741230,1763923838219,-270.0,0.00029101,2]
[394741231,1763923838229,-168.0,0.00029373,2]
[394741232,1763923838238,-1000.0,0.000296,2]
[394741233,1763923838248,-168.0,0.00029601,2]
[394741234,1763923838258,-311.53201472,0.00029609,59]
[394741235,1763923838268,-168.0,0.00029619,2]
[394741236,1763923838278,-168.0,0.00029636,2]
[394741237,1763923838288,-168.0,0.0003035,2]
[394741238,1763923838298,-270.0,0.00030351,2]
[394741239,1763923838308,-195.20151301,0.00030423,2]
[394741240,1763923838318,-168.0,0.00030435,2]
[394741241,1763923838328,-270.0,0.0003052,2]
[394741242,1763923838338,-168.0,0.00030626,2]
[394741243,1763923838348,-270.0,0.00030683,2]
[394741244,1763923838358,-168.0,0.00030695,2]
[394741245,1763923838368,-168.0,0.0003076,2]
[394741246,1763923838378,-168.0,0.00030869,2]
[394741247,1763923838388,-270.0,0.00030967,7]
[394741248,1763923838398,-168.0,0.00031178,2]
[394741249,1763923838407,-514.17,0.00031195,2]
[394741250,1763923838417,-311.53201472,0.00031317,64]
[394741251,1763923838426,-17604.0672471,0.00031504,2]
[394741252,1763923838443,-15205.6227529,0.00031504,2]
[394741253,1763923838453,-168.19,0.00031814,2]
[394741254,1763923838464,-5000.0,0.00031859,2]
[394741255,1763923838475,-150.0,0.000319,14]
[394741256,1763923838484,-3048.09188914,0.00032135,2]
[394741257,1763923838519,-17079.03811086,0.00032135,2]
[394741258,1763923838528,-999.0,0.00032402,3]
[394741259,1763923838538,-165.31,0.00032452,2]
[394741260,1763923838547,-155.86,0.00032485,30]
[394741261,1763923838557,-1000.0,0.00032562,2]
[394741262,1763923838566,-195.0,0.0003292,2]
[394741263,1763923838575,-195.0,0.0003292,2]
[394741264,1763923838585,-195.0,0.0003292,2]
[394741265,1763923838594,-195.0,0.0003292,2]
[394741266,1763923838603,-195.0,0.0003292,2]
[394741267,1763923838613,-195.0,0.0003292,2]
[394741268,1763923838627,-195.0,0.0003292,2]
[394741269,1763923838636,-195.0,0.0003292,2]
[394741270,1763923838646,-153.0,0.00032922,2]
[394741271,1763923838656,-153.0,0.00032922,2]
[394741272,1763923838665,-153.0,0.00032922,2]
[394741273,1763923838674,-153.0,0.00032922,2]
[394741274,1763923838684,-163.0,0.00032926,2]
[394741275,1763923838694,-163.0,0.00032926,2]
[394741276,1763923838703,-163.0,0.00032926,2]
[394741277,1763923838713,-163.0,0.00032926,2]
[394741278,1763923838724,-163.0,0.00032926,2]
[394741279,1763923838734,-163.0,0.00032926,2]
[394741280,1763923838743,-163.0,0.00032926,2]
[394741281,1763923838753,-163.0,0.00032926,2]
[394741282,1763923838762,-163.0,0.00032926,2]
[394741283,1763923838772,-163.0,0.00032926,2]
[394741284,1763923838781,-163.0,0.00032926,2]
[394741285,1763923838790,-163.0,0.00032926,2]
[394741286,1763923838799,-163.0,0.00032926,2]
[394741287,1763923838809,-163.0,0.00032926,2]
[394741288,1763923838818,-163.0,0.00032926,2]
[394741289,1763923838828,-163.0,0.00032926,2]
[394741290,1763923838836,-163.0,0.00032926,2]
[394741291,1763923838846,-163.0,0.00032926,2]
[394741292,1763923838855,-163.0,0.00032926,2]
[394741293,1763923838865,-163.0,0.00032926,2]
[394741294,1763923838874,-153.0,0.00032928,2]
[394741295,1763923838883,-153.0,0.00032928,2]
[394741296,1763923838892,-153.0,0.00032928,2]
[394741297,1763923838902,-153.0,0.00032928,2]
[394741298,1763923838911,-153.0,0.0003294,2]
[394741299,1763923838919,-153.0,0.0003294,2]